[Event "*** SCC Grand Prix: Titled Tuesday Blitz"]
[Site "Chess.com"]
[Date "2020.10.06"]
[Round "7"]
[White "seorobert1971"]
[Black "Angel_Hranitel_37"]
[Result "1-0"]
[WhiteElo "2709"]
[BlackElo "2543"]
[TimeControl "180+1"]
[EndTime "11:20:27 PDT"]
[Termination "seorobert1971 won by checkmate"]

1. e4 {[%clk 0:03:00.9]} 1... c5 {[%clk 0:03:00]} 2. Nf3 {[%clk 0:03:00.8]} 2...
e6 {[%clk 0:03:00.4]} 3. g3 {[%clk 0:02:59.8]} 3... d5 {[%clk 0:03:00.2]} 4.
exd5 {[%clk 0:02:59.6]} 4... exd5 {[%clk 0:03:01.1]} 5. d4 {[%clk 0:02:59.6]}
5... Nc6 {[%clk 0:03:01.5]} 6. Bg2 {[%clk 0:02:59.1]} 6... Bg4 {[%clk
0:03:01.8]} 7. dxc5 {[%clk 0:02:50.4]} 7... Bxc5 {[%clk 0:02:54.6]} 8. O-O
{[%clk 0:02:49.1]} 8... Nf6 {[%clk 0:02:55]} 9. Bg5 {[%clk 0:02:45.9]} 9... O-O
{[%clk 0:02:52.9]} 10. Nc3 {[%clk 0:02:44.4]} 10... d4 {[%clk 0:02:45.4]} 11.
Ne4 {[%clk 0:02:34.6]} 11... Be7 {[%clk 0:02:45.3]} 12. Bxf6 {[%clk 0:02:34.5]}
12... Bxf6 {[%clk 0:02:46.2]} 13. h3 {[%clk 0:02:34.1]} 13... Bf5 {[%clk
0:02:43.3]} 14. Ne1 {[%clk 0:02:26.9]} 14... Re8 {[%clk 0:02:21.4]} 15. Nxf6+
{[%clk 0:02:26.3]} 15... Qxf6 {[%clk 0:02:22.3]} 16. Qd2 {[%clk 0:02:21.3]}
16... Rac8 {[%clk 0:02:20]} 17. Nd3 {[%clk 0:02:20.6]} 17... Bxd3 {[%clk
0:02:19.8]} 18. cxd3 {[%clk 0:02:19.5]} 18... Qd6 {[%clk 0:02:03.8]} 19. Rac1
{[%clk 0:02:11.8]} 19... b6 {[%clk 0:01:45.5]} 20. Rfe1 {[%clk 0:02:10.6]} 20...
Nb4 {[%clk 0:01:41]} 21. Rxe8+ {[%clk 0:02:02.6]} 21... Rxe8 {[%clk 0:01:40.7]}
22. a3 {[%clk 0:02:02.3]} 22... Na6 {[%clk 0:01:31.9]} 23. Qc2 {[%clk
0:01:58.2]} 23... Nc5 {[%clk 0:01:17.6]} 24. b4 {[%clk 0:01:57]} 24... Ne6
{[%clk 0:01:14.2]} 25. Qc6 {[%clk 0:01:47.2]} 25... Qxc6 {[%clk 0:01:08.1]} 26.
Rxc6 {[%clk 0:01:48.1]} 26... Rd8 {[%clk 0:01:09]} 27. h4 {[%clk 0:01:38.8]}
27... Kf8 {[%clk 0:00:42]} 28. Bh3 {[%clk 0:01:37.7]} 28... Ke7 {[%clk
0:00:42.6]} 29. Kf1 {[%clk 0:01:29]} 29... Rd6 {[%clk 0:00:38.2]} 30. Rc8 {[%clk
0:01:28.2]} 30... a5 {[%clk 0:00:25.4]} 31. Ke2 {[%clk 0:01:07.6]} 31... axb4
{[%clk 0:00:23.5]} 32. axb4 {[%clk 0:01:08.5]} 32... Kd7 {[%clk 0:00:18.7]} 33.
Rc4 {[%clk 0:01:01.7]} 33... Kd8 {[%clk 0:00:08.4]} 34. Kd2 {[%clk 0:00:56.9]}
34... Nc7 {[%clk 0:00:07.9]} 35. Bg2 {[%clk 0:00:47.4]} 35... Nb5 {[%clk
0:00:06.7]} 36. Bb7 {[%clk 0:00:41.2]} 36... Nc3 {[%clk 0:00:05]} 37. Rc8+
{[%clk 0:00:37.1]} 37... Ke7 {[%clk 0:00:05.2]} 38. Bf3 {[%clk 0:00:28.2]} 38...
Rf6 {[%clk 0:00:05.5]} 39. Bc6 {[%clk 0:00:18.3]} 39... Rxf2+ {[%clk 0:00:05.6]}
40. Kc1 {[%clk 0:00:17.9]} 40... Na2+ {[%clk 0:00:05.6]} 41. Kd1 {[%clk
0:00:17.3]} 41... Nxb4 {[%clk 0:00:06.2]} 42. Be4 {[%clk 0:00:17.4]} 42... Na2
{[%clk 0:00:04.9]} 43. Ke1 {[%clk 0:00:16.4]} 43... Rb2 {[%clk 0:00:04.4]} 44.
Rc7+ {[%clk 0:00:15]} 44... Ke6 {[%clk 0:00:03.3]} 45. Rc6+ {[%clk 0:00:14.4]}
45... Kd7 {[%clk 0:00:03.9]} 46. Rc4 {[%clk 0:00:12.2]} 46... Nc3 {[%clk
0:00:02.6]} 47. Rxd4+ {[%clk 0:00:11.9]} 47... Ke6 {[%clk 0:00:03.5]} 48. Bf3
{[%clk 0:00:10.8]} 48... Rb1+ {[%clk 0:00:03.4]} 49. Kd2 {[%clk 0:00:10.6]}
49... Nb5 {[%clk 0:00:02.9]} 50. Rc4 {[%clk 0:00:10.1]} 50... Nd6 {[%clk
0:00:02.6]} 51. Rc7 {[%clk 0:00:09.9]} 51... Rb2+ {[%clk 0:00:02.7]} 52. Ke3
{[%clk 0:00:09]} 52... b5 {[%clk 0:00:02.6]} 53. d4 {[%clk 0:00:07.8]} 53...
Rb3+ {[%clk 0:00:03]} 54. Kf4 {[%clk 0:00:07.8]} 54... f6 {[%clk 0:00:03.3]} 55.
d5# {[%clk 0:00:06.9]} 1-0

[Event "*** SCC Grand Prix: Titled Tuesday Blitz"]
[Site "Chess.com"]
[Date "2020.10.06"]
[Round "7"]
[White "XDPS"]
[Black "Ranindu2003"]
[Result "0-1"]
[WhiteElo "2788"]
[BlackElo "2617"]
[TimeControl "180+1"]
[EndTime "11:20:32 PDT"]
[Termination "Ranindu2003 won on time"]

1. d4 {[%clk 0:03:00.9]} 1... Nf6 {[%clk 0:02:59.7]} 2. Bf4 {[%clk 0:03:01.2]}
2... g6 {[%clk 0:02:57.6]} 3. e3 {[%clk 0:03:01]} 3... Bg7 {[%clk 0:02:57.8]} 4.
h3 {[%clk 0:03:01.4]} 4... O-O {[%clk 0:02:57.7]} 5. Nf3 {[%clk 0:03:01.9]} 5...
d6 {[%clk 0:02:58.1]} 6. Be2 {[%clk 0:03:02.3]} 6... c5 {[%clk 0:02:58.5]} 7.
O-O {[%clk 0:03:02.4]} 7... Nc6 {[%clk 0:02:58.6]} 8. c3 {[%clk 0:03:01.7]} 8...
Re8 {[%clk 0:02:55.7]} 9. Bh2 {[%clk 0:03:01.1]} 9... Qb6 {[%clk 0:02:49.5]} 10.
Qb3 {[%clk 0:03:00.2]} 10... Be6 {[%clk 0:02:45.7]} 11. Qa3 {[%clk 0:02:59.9]}
11... Na5 {[%clk 0:02:29.1]} 12. Nbd2 {[%clk 0:02:59.3]} 12... Rec8 {[%clk
0:02:23.9]} 13. Rac1 {[%clk 0:02:55.4]} 13... cxd4 {[%clk 0:02:12.7]} 14. exd4
{[%clk 0:02:50.1]} 14... Nc4 {[%clk 0:02:06.6]} 15. Nxc4 {[%clk 0:02:48.3]}
15... Bxc4 {[%clk 0:02:07.5]} 16. Bxc4 {[%clk 0:02:48.8]} 16... Rxc4 {[%clk
0:02:08.4]} 17. Rfe1 {[%clk 0:02:49.4]} 17... Rc7 {[%clk 0:02:07.5]} 18. Qb3
{[%clk 0:02:44.8]} 18... Qxb3 {[%clk 0:01:55.1]} 19. axb3 {[%clk 0:02:45.7]}
19... b5 {[%clk 0:01:55.6]} 20. Ra1 {[%clk 0:01:56.2]} 20... a5 {[%clk
0:01:50.2]} 21. Nd2 {[%clk 0:01:24.9]} 21... Nd5 {[%clk 0:01:40.8]} 22. Kf1
{[%clk 0:01:25.8]} 22... a4 {[%clk 0:01:35.4]} 23. bxa4 {[%clk 0:01:24.3]} 23...
bxa4 {[%clk 0:01:35.6]} 24. Ra2 {[%clk 0:01:18.2]} 24... a3 {[%clk 0:01:20.6]}
25. c4 {[%clk 0:01:12.7]} 25... Nb4 {[%clk 0:00:57.2]} 26. Rxa3 {[%clk
0:01:09.5]} 26... Rxa3 {[%clk 0:00:56.9]} 27. bxa3 {[%clk 0:01:10.4]} 27... Nc2
{[%clk 0:00:57.3]} 28. Rb1 {[%clk 0:01:00.5]} 28... Bxd4 {[%clk 0:00:54]} 29. a4
{[%clk 0:00:56]} 29... Bc3 {[%clk 0:00:50]} 30. Rc1 {[%clk 0:00:28]} 30... Ne3+
{[%clk 0:00:42.5]} 31. fxe3 {[%clk 0:00:25.1]} 31... Bxd2 {[%clk 0:00:42.1]} 32.
Rc2 {[%clk 0:00:24.9]} 32... Bxe3 {[%clk 0:00:41.9]} 33. Ke2 {[%clk 0:00:24.4]}
33... Bc5 {[%clk 0:00:41.7]} 34. Kd3 {[%clk 0:00:24]} 34... Ra7 {[%clk
0:00:41.7]} 35. Ra2 {[%clk 0:00:24.2]} 35... Kf8 {[%clk 0:00:41.1]} 36. Bf4
{[%clk 0:00:22.6]} 36... Ke8 {[%clk 0:00:40.7]} 37. Bd2 {[%clk 0:00:21.8]} 37...
Kd7 {[%clk 0:00:40.2]} 38. a5 {[%clk 0:00:21.5]} 38... Kc6 {[%clk 0:00:40.3]}
39. Bc3 {[%clk 0:00:21.8]} 39... e5 {[%clk 0:00:38.4]} 40. Re2 {[%clk
0:00:21.1]} 40... f5 {[%clk 0:00:38.4]} 41. Rb2 {[%clk 0:00:20.5]} 41... e4+
{[%clk 0:00:30.9]} 42. Ke2 {[%clk 0:00:20.4]} 42... Rb7 {[%clk 0:00:27.5]} 43.
Ra2 {[%clk 0:00:18.9]} 43... Rb3 {[%clk 0:00:25.4]} 44. Bd2 {[%clk 0:00:18.8]}
44... Rg3 {[%clk 0:00:20.4]} 45. Kf1 {[%clk 0:00:18.1]} 45... Rb3 {[%clk
0:00:17.4]} 46. Ke2 {[%clk 0:00:18.1]} 46... Ba7 {[%clk 0:00:16.7]} 47. a6
{[%clk 0:00:17.3]} 47... Rb8 {[%clk 0:00:12.9]} 48. g4 {[%clk 0:00:11.8]} 48...
Ra8 {[%clk 0:00:12]} 49. gxf5 {[%clk 0:00:10.4]} 49... gxf5 {[%clk 0:00:12.9]}
50. Ra5 {[%clk 0:00:11.2]} 50... Bc5 {[%clk 0:00:13]} 51. Ra1 {[%clk 0:00:06.5]}
51... Kb6 {[%clk 0:00:13.1]} 52. Rf1 {[%clk 0:00:07]} 52... Rf8 {[%clk
0:00:11.5]} 53. Ra1 {[%clk 0:00:07.1]} 53... f4 {[%clk 0:00:10.8]} 54. a7 {[%clk
0:00:06.1]} 54... Kb7 {[%clk 0:00:10.6]} 55. a8=Q+ {[%clk 0:00:04.8]} 55... Rxa8
{[%clk 0:00:10.5]} 56. Rxa8 {[%clk 0:00:05.7]} 56... f3+ {[%clk 0:00:10.4]} 0-1

[Event "*** SCC Grand Prix: Titled Tuesday Blitz"]
[Site "Chess.com"]
[Date "2020.10.06"]
[Round "7"]
[White "PhileKhoob"]
[Black "verdest"]
[Result "1-0"]
[WhiteElo "2480"]
[BlackElo "2635"]
[TimeControl "180+1"]
[EndTime "11:20:34 PDT"]
[Termination "PhileKhoob won by resignation"]

1. Nf3 {[%clk 0:03:00.9]} 1... Nf6 {[%clk 0:02:59.3]} 2. b3 {[%clk 0:03:00.4]}
2... d5 {[%clk 0:02:59]} 3. Bb2 {[%clk 0:03:01.3]} 3... c6 {[%clk 0:02:59.1]} 4.
g3 {[%clk 0:03:00.4]} 4... Bf5 {[%clk 0:02:58.8]} 5. Bg2 {[%clk 0:03:00.6]} 5...
Nbd7 {[%clk 0:02:59.3]} 6. O-O {[%clk 0:03:01]} 6... e6 {[%clk 0:02:59.7]} 7. d3
{[%clk 0:03:01.3]} 7... Be7 {[%clk 0:02:59.3]} 8. Nbd2 {[%clk 0:03:02.2]} 8...
O-O {[%clk 0:02:59]} 9. Re1 {[%clk 0:03:01.4]} 9... h6 {[%clk 0:02:59.3]} 10. e4
{[%clk 0:03:01.9]} 10... Bh7 {[%clk 0:02:58.2]} 11. Qe2 {[%clk 0:03:02.1]} 11...
a5 {[%clk 0:02:57.3]} 12. a3 {[%clk 0:03:00.4]} 12... b5 {[%clk 0:02:47.6]} 13.
e5 {[%clk 0:03:00.1]} 13... Ne8 {[%clk 0:02:46]} 14. h4 {[%clk 0:03:00.5]} 14...
Nc7 {[%clk 0:02:37.8]} 15. Nh2 {[%clk 0:03:00.7]} 15... c5 {[%clk 0:02:29.6]}
16. a4 {[%clk 0:03:00.1]} 16... Rb8 {[%clk 0:02:24.5]} 17. axb5 {[%clk
0:02:58.6]} 17... Nxb5 {[%clk 0:02:25.4]} 18. Ng4 {[%clk 0:02:55.5]} 18... Nd4
{[%clk 0:02:24.7]} 19. Bxd4 {[%clk 0:02:40]} 19... cxd4 {[%clk 0:02:25.6]} 20.
Nf3 {[%clk 0:02:40.3]} 20... Qb6 {[%clk 0:02:14.2]} 21. h5 {[%clk 0:02:04.8]}
21... Kh8 {[%clk 0:02:07.7]} 22. Qd2 {[%clk 0:02:01.7]} 22... Qb4 {[%clk
0:02:05.7]} 23. Qf4 {[%clk 0:02:00.3]} 23... Rbc8 {[%clk 0:01:58.2]} 24. Re2
{[%clk 0:01:54.4]} 24... Rc3 {[%clk 0:01:46.1]} 25. Qxd4 {[%clk 0:01:48.2]}
25... Qxd4 {[%clk 0:01:43]} 26. Nxd4 {[%clk 0:01:49.1]} 26... Bb4 {[%clk
0:01:32.3]} 27. Nh2 {[%clk 0:01:23]} 27... Rfc8 {[%clk 0:01:30.1]} 28. Nf1
{[%clk 0:01:20]} 28... Nb6 {[%clk 0:01:15.1]} 29. Ne3 {[%clk 0:01:05.7]} 29...
R3c7 {[%clk 0:01:01.1]} 30. Nd1 {[%clk 0:01:01.4]} 30... Nd7 {[%clk 0:00:58.5]}
31. f4 {[%clk 0:00:50.8]} 31... Nb8 {[%clk 0:00:57]} 32. Kf1 {[%clk 0:00:49.1]}
32... Nc6 {[%clk 0:00:56.1]} 33. Nxc6 {[%clk 0:00:39.4]} 33... Rxc6 {[%clk
0:00:57]} 34. Ra2 {[%clk 0:00:40.1]} 34... Rc5 {[%clk 0:00:39]} 35. g4 {[%clk
0:00:37.7]} 35... g5 {[%clk 0:00:33.6]} 36. fxg5 {[%clk 0:00:31.5]} 36... hxg5
{[%clk 0:00:34.5]} 37. Rf2 {[%clk 0:00:28.9]} 37... Kg8 {[%clk 0:00:30.4]} 38.
Ne3 {[%clk 0:00:25.2]} 38... Bc3 {[%clk 0:00:26.6]} 39. Re2 {[%clk 0:00:21.3]}
39... Bxe5 {[%clk 0:00:24.5]} 40. Nxd5 {[%clk 0:00:19.9]} 40... Bd6 {[%clk
0:00:11.4]} 41. Nf6+ {[%clk 0:00:17.3]} 41... Kg7 {[%clk 0:00:11.7]} 42. Nxh7
{[%clk 0:00:18]} 42... Kxh7 {[%clk 0:00:12.6]} 43. c4 {[%clk 0:00:15.2]} 43...
Rb8 {[%clk 0:00:11.6]} 44. d4 {[%clk 0:00:14.3]} 44... Rc7 {[%clk 0:00:10.8]}
45. c5 {[%clk 0:00:14.1]} 45... Be7 {[%clk 0:00:08.6]} 46. Re3 {[%clk
0:00:09.5]} 46... Bf6 {[%clk 0:00:08.3]} 47. Rd3 {[%clk 0:00:08.8]} 47... Rb4
{[%clk 0:00:06.2]} 48. Rxa5 {[%clk 0:00:08]} 48... Bxd4 {[%clk 0:00:04.5]} 49.
c6 {[%clk 0:00:07.7]} 49... Bf6 {[%clk 0:00:03.8]} 50. Bf3 {[%clk 0:00:07.7]}
50... Rf4 {[%clk 0:00:03.8]} 51. Ke2 {[%clk 0:00:06.6]} 51... e5 {[%clk
0:00:04.2]} 52. Re3 {[%clk 0:00:06.6]} 52... Re7 {[%clk 0:00:03.6]} 53. Re4
{[%clk 0:00:05.1]} 53... Kg7 {[%clk 0:00:04.5]} 54. Rc5 {[%clk 0:00:03.9]} 54...
Rxe4+ {[%clk 0:00:03.8]} 55. Bxe4 {[%clk 0:00:03.7]} 55... Rc7 {[%clk
0:00:04.7]} 56. b4 {[%clk 0:00:03.8]} 56... Be7 {[%clk 0:00:05.3]} 57. Rc4
{[%clk 0:00:04.2]} 57... Bd6 {[%clk 0:00:05.3]} 58. b5 {[%clk 0:00:04.5]} 58...
Rc8 {[%clk 0:00:04.9]} 59. b6 {[%clk 0:00:04.8]} 1-0

[Event "*** SCC Grand Prix: Titled Tuesday Blitz"]
[Site "Chess.com"]
[Date "2020.10.06"]
[Round "7"]
[White "AlexSuv"]
[Black "andrzej"]
[Result "1-0"]
[WhiteElo "2491"]
[BlackElo "2304"]
[TimeControl "180+1"]
[EndTime "11:20:34 PDT"]
[Termination "AlexSuv won by resignation"]

1. d4 {[%clk 0:03:00.9]} 1... Nf6 {[%clk 0:02:59.6]} 2. c4 {[%clk 0:03:00.6]}
2... g6 {[%clk 0:02:59.4]} 3. Nc3 {[%clk 0:02:56.7]} 3... Bg7 {[%clk 0:02:59.9]}
4. e4 {[%clk 0:02:53.9]} 4... d6 {[%clk 0:03:00.3]} 5. Nf3 {[%clk 0:02:53.7]}
5... O-O {[%clk 0:03:00.8]} 6. Be2 {[%clk 0:02:54.1]} 6... e5 {[%clk 0:03:00.8]}
7. Be3 {[%clk 0:02:54.7]} 7... Re8 {[%clk 0:02:58.2]} 8. d5 {[%clk 0:02:50.8]}
8... Ng4 {[%clk 0:02:55.3]} 9. Bg5 {[%clk 0:02:49]} 9... Bf6 {[%clk 0:02:54]}
10. Bd2 {[%clk 0:02:43.2]} 10... Be7 {[%clk 0:02:52]} 11. h3 {[%clk 0:02:38.8]}
11... Nf6 {[%clk 0:02:52]} 12. Qc2 {[%clk 0:02:39]} 12... Nh5 {[%clk 0:02:48.5]}
13. g3 {[%clk 0:02:31.5]} 13... a5 {[%clk 0:02:47.6]} 14. O-O-O {[%clk
0:02:16.2]} 14... Na6 {[%clk 0:02:47.5]} 15. Nh2 {[%clk 0:02:09.7]} 15... Ng7
{[%clk 0:02:46.2]} 16. h4 {[%clk 0:02:06.5]} 16... f5 {[%clk 0:02:43.8]} 17. Nf3
{[%clk 0:02:04.2]} 17... Nb4 {[%clk 0:02:37.2]} 18. Qb1 {[%clk 0:02:03.5]} 18...
fxe4 {[%clk 0:02:37.3]} 19. Nxe4 {[%clk 0:02:03]} 19... Bf5 {[%clk 0:02:36.7]}
20. a3 {[%clk 0:01:58.4]} 20... Na6 {[%clk 0:02:32.7]} 21. Bg5 {[%clk
0:01:53.1]} 21... Nc5 {[%clk 0:02:28.4]} 22. Bd3 {[%clk 0:01:41.7]} 22... a4
{[%clk 0:01:56.5]} 23. Nxc5 {[%clk 0:01:38.5]} 23... dxc5 {[%clk 0:01:56.6]} 24.
Rhe1 {[%clk 0:01:29.6]} 24... Bf6 {[%clk 0:01:45.1]} 25. Be4 {[%clk 0:01:19.8]}
25... Qd6 {[%clk 0:01:39.8]} 26. Rd2 {[%clk 0:01:15]} 26... Bxe4 {[%clk
0:01:33.2]} 27. Qxe4 {[%clk 0:01:14.1]} 27... Nf5 {[%clk 0:01:34.1]} 28. Kb1
{[%clk 0:01:06.2]} 28... Nd4 {[%clk 0:01:33.2]} 29. Bxf6 {[%clk 0:00:59.6]}
29... Qxf6 {[%clk 0:01:30.7]} 30. Ng5 {[%clk 0:00:54.9]} 30... h6 {[%clk
0:01:14]} 31. Ne6 {[%clk 0:00:39]} 31... Nxe6 {[%clk 0:01:14.1]} 32. dxe6 {[%clk
0:00:38.6]} 32... Qxe6 {[%clk 0:01:14.4]} 33. Red1 {[%clk 0:00:37.9]} 33... Qf5
{[%clk 0:01:09.2]} 34. Qxf5 {[%clk 0:00:35.7]} 34... gxf5 {[%clk 0:01:10.1]} 35.
Rd7 {[%clk 0:00:36.2]} 35... Rac8 {[%clk 0:01:03.1]} 36. R1d5 {[%clk 0:00:36.6]}
36... b6 {[%clk 0:01:03.1]} 37. Kc2 {[%clk 0:00:37]} 37... e4 {[%clk 0:00:59.8]}
38. Kd2 {[%clk 0:00:36.9]} 38... Rf8 {[%clk 0:00:55]} 39. Ke3 {[%clk 0:00:36.6]}
39... Rf7 {[%clk 0:00:44.5]} 40. Kf4 {[%clk 0:00:35.8]} 40... Rcf8 {[%clk
0:00:38.2]} 41. Rxf7 {[%clk 0:00:31.7]} 41... Rxf7 {[%clk 0:00:39.1]} 42. Rxf5
{[%clk 0:00:32.1]} 42... Rd7 {[%clk 0:00:26]} 43. Rd5 {[%clk 0:00:32]} 43...
Rf7+ {[%clk 0:00:23.5]} 44. Kxe4 {[%clk 0:00:23]} 44... Rxf2 {[%clk 0:00:23.2]}
45. Rd8+ {[%clk 0:00:23.7]} 45... Kf7 {[%clk 0:00:22.6]} 46. Rd7+ {[%clk
0:00:24.3]} 46... Ke6 {[%clk 0:00:23.2]} 47. Rxc7 {[%clk 0:00:24.9]} 47... Rxb2
{[%clk 0:00:23.7]} 48. Rc6+ {[%clk 0:00:24.8]} 48... Kd7 {[%clk 0:00:24.1]} 49.
Rxh6 {[%clk 0:00:24.5]} 49... Rb3 {[%clk 0:00:24.7]} 50. g4 {[%clk 0:00:25]}
50... Rxa3 {[%clk 0:00:24.4]} 51. Rxb6 {[%clk 0:00:24.9]} 51... Rh3 {[%clk
0:00:21.8]} 52. h5 {[%clk 0:00:24.7]} 52... a3 {[%clk 0:00:21.4]} 53. Ra6 {[%clk
0:00:24.4]} 53... Ke7 {[%clk 0:00:18.5]} 54. Kf5 {[%clk 0:00:24.1]} 54... Rc3
{[%clk 0:00:12]} 55. g5 {[%clk 0:00:22.2]} 55... Rxc4 {[%clk 0:00:10.6]} 56.
Rxa3 {[%clk 0:00:22.1]} 56... Rc1 {[%clk 0:00:09.9]} 57. h6 {[%clk 0:00:22]}
57... Rh1 {[%clk 0:00:09.2]} 58. Kg6 {[%clk 0:00:21.8]} 58... c4 {[%clk
0:00:08.2]} 59. h7 {[%clk 0:00:21.9]} 59... Rh2 {[%clk 0:00:04.3]} 60. Kg7
{[%clk 0:00:21.5]} 60... Kd6 {[%clk 0:00:03.9]} 61. h8=Q {[%clk 0:00:19.8]}
61... Rxh8 {[%clk 0:00:04.1]} 62. Kxh8 {[%clk 0:00:20]} 62... Kc5 {[%clk
0:00:04.6]} 63. g6 {[%clk 0:00:20.4]} 63... Kb4 {[%clk 0:00:05.2]} 64. Rg3
{[%clk 0:00:20.4]} 64... c3 {[%clk 0:00:06.1]} 65. Rxc3 {[%clk 0:00:20.4]} 65...
Kxc3 {[%clk 0:00:07]} 66. g7 {[%clk 0:00:21]} 1-0

[Event "*** SCC Grand Prix: Titled Tuesday Blitz"]
[Site "Chess.com"]
[Date "2020.10.06"]
[Round "7"]
[White "profofchess"]
[Black "underthebridge1999"]
[Result "1-0"]
[WhiteElo "2381"]
[BlackElo "2257"]
[TimeControl "180+1"]
[EndTime "11:20:34 PDT"]
[Termination "profofchess won by resignation"]

1. e4 {[%clk 0:03:00.9]} 1... c5 {[%clk 0:02:34.3]} 2. Nf3 {[%clk 0:03:00.4]}
2... Nc6 {[%clk 0:02:34.8]} 3. Bb5 {[%clk 0:02:59.7]} 3... g6 {[%clk 0:02:34.3]}
4. O-O {[%clk 0:02:59.3]} 4... Bg7 {[%clk 0:02:34]} 5. Re1 {[%clk 0:02:59.5]}
5... e5 {[%clk 0:02:34]} 6. Bxc6 {[%clk 0:02:59.3]} 6... dxc6 {[%clk 0:02:32.1]}
7. d3 {[%clk 0:02:59.6]} 7... Ne7 {[%clk 0:02:31.6]} 8. a4 {[%clk 0:02:59.1]}
8... O-O {[%clk 0:02:31.3]} 9. a5 {[%clk 0:02:59.2]} 9... h6 {[%clk 0:02:28.3]}
10. Be3 {[%clk 0:02:58.5]} 10... Qd6 {[%clk 0:02:23.4]} 11. Nbd2 {[%clk
0:02:54.6]} 11... Be6 {[%clk 0:02:21.2]} 12. Nc4 {[%clk 0:02:42.3]} 12... Bxc4
{[%clk 0:02:19.7]} 13. dxc4 {[%clk 0:02:43.2]} 13... Qxd1 {[%clk 0:02:10.1]} 14.
Rexd1 {[%clk 0:02:43.2]} 14... b6 {[%clk 0:02:10.5]} 15. Rd7 {[%clk 0:02:37.5]}
15... Bf6 {[%clk 0:02:09.8]} 16. Bxh6 {[%clk 0:02:26.4]} 16... Rfd8 {[%clk
0:02:07.6]} 17. Rxd8+ {[%clk 0:02:16.7]} 17... Rxd8 {[%clk 0:02:08.5]} 18. axb6
{[%clk 0:02:12.2]} 18... axb6 {[%clk 0:02:08]} 19. Kf1 {[%clk 0:02:10.8]} 19...
Bh8 {[%clk 0:01:49.5]} 20. Ke2 {[%clk 0:01:51.9]} 20... f5 {[%clk 0:01:48.6]}
21. Nd2 {[%clk 0:01:32.9]} 21... Kf7 {[%clk 0:01:41.7]} 22. Ra7 {[%clk 0:01:29]}
22... Bf6 {[%clk 0:01:40.9]} 23. exf5 {[%clk 0:00:52.1]} 23... gxf5 {[%clk
0:01:34.9]} 24. f4 {[%clk 0:00:51.4]} 24... e4 {[%clk 0:00:34.5]} 25. Bg5 {[%clk
0:00:51.4]} 25... Rh8 {[%clk 0:00:33.2]} 26. Bxf6 {[%clk 0:00:46.6]} 26... Kxf6
{[%clk 0:00:32.7]} 27. Nf1 {[%clk 0:00:44.4]} 27... Ng6 {[%clk 0:00:24.2]} 28.
g3 {[%clk 0:00:44.2]} 28... Rb8 {[%clk 0:00:20.8]} 29. h4 {[%clk 0:00:31.1]}
29... b5 {[%clk 0:00:20.5]} 30. Ra6 {[%clk 0:00:26]} 30... Ne7 {[%clk
0:00:18.7]} 31. cxb5 {[%clk 0:00:26.1]} 31... Rxb5 {[%clk 0:00:18.2]} 32. b3
{[%clk 0:00:26.3]} 32... Ke6 {[%clk 0:00:16.8]} 33. Ne3 {[%clk 0:00:25.1]} 33...
Rb8 {[%clk 0:00:16.1]} 34. Ra1 {[%clk 0:00:19.6]} 34... Kd6 {[%clk 0:00:17]} 35.
Rh1 {[%clk 0:00:16.3]} 35... Rg8 {[%clk 0:00:17.9]} 36. h5 {[%clk 0:00:12.1]}
36... Rxg3 {[%clk 0:00:18.8]} 37. h6 {[%clk 0:00:12.3]} 37... Rg8 {[%clk
0:00:18]} 38. h7 {[%clk 0:00:12.7]} 38... Rh8 {[%clk 0:00:17.9]} 39. Rh6+ {[%clk
0:00:12.2]} 39... Kd7 {[%clk 0:00:17.4]} 40. Nc4 {[%clk 0:00:10.6]} 40... Nd5
{[%clk 0:00:17]} 41. Ne5+ {[%clk 0:00:09.8]} 41... Kc7 {[%clk 0:00:14.7]} 42.
Ng6 {[%clk 0:00:10]} 42... Rd8 {[%clk 0:00:13]} 43. h8=Q {[%clk 0:00:09.1]}
43... Rxh8 {[%clk 0:00:12]} 44. Rxh8 {[%clk 0:00:08.5]} 44... Kb6 {[%clk
0:00:11.6]} 45. Rf8 {[%clk 0:00:07.6]} 45... Kb5 {[%clk 0:00:11.5]} 46. Rxf5
{[%clk 0:00:07.9]} 46... c4 {[%clk 0:00:11.7]} 47. Rxd5+ {[%clk 0:00:07.4]}
47... cxd5 {[%clk 0:00:11.4]} 48. f5 {[%clk 0:00:07.9]} 48... c3 {[%clk
0:00:07.5]} 49. f6 {[%clk 0:00:07.9]} 49... d4 {[%clk 0:00:08]} 50. f7 {[%clk
0:00:07.9]} 50... Kb4 {[%clk 0:00:08.4]} 51. f8=Q+ {[%clk 0:00:07.7]} 51... Kb5
{[%clk 0:00:09.3]} 52. Qd6 {[%clk 0:00:07.5]} 52... d3+ {[%clk 0:00:09]} 53.
cxd3 {[%clk 0:00:07.5]} 53... c2 {[%clk 0:00:09.9]} 54. Kd2 {[%clk 0:00:07.4]}
54... e3+ {[%clk 0:00:09.4]} 55. Kxc2 {[%clk 0:00:07.3]} 55... e2 {[%clk
0:00:10.3]} 56. Qe5+ {[%clk 0:00:07]} 56... Ka6 {[%clk 0:00:09.8]} 57. Qxe2
{[%clk 0:00:07.8]} 57... Kb5 {[%clk 0:00:09.6]} 58. Qe5+ {[%clk 0:00:08]} 58...
Kb4 {[%clk 0:00:09.9]} 59. Qd4+ {[%clk 0:00:07.7]} 59... Kb5 {[%clk 0:00:09.9]}
60. Qc4+ {[%clk 0:00:07.8]} 60... Kb6 {[%clk 0:00:09.9]} 61. Qd5 {[%clk
0:00:08]} 61... Kc7 {[%clk 0:00:09.5]} 62. Qe6 {[%clk 0:00:08.1]} 62... Kb7
{[%clk 0:00:09.3]} 63. Qd6 {[%clk 0:00:08.5]} 63... Ka7 {[%clk 0:00:08]} 64. Qc6
{[%clk 0:00:08.6]} 64... Kb8 {[%clk 0:00:07.9]} 65. Qd7 {[%clk 0:00:09.5]} 65...
Ka8 {[%clk 0:00:07.8]} 66. Nf4 {[%clk 0:00:09.9]} 66... Kb8 {[%clk 0:00:07.7]}
67. Ne6 {[%clk 0:00:10]} 67... Ka8 {[%clk 0:00:08.6]} 1-0